bitfinex/quotes_ETHUSD_20250511
["timestamp","ask_amount","ask_price","bid_price","bid_amount"]
[1746959620165,1e-08,2509.5,2509.3,26.281038]
[1746959620341,10.05,2510.5,2509.8,0.55]
[1746959620534,3.98289697,2510.8,2510.0,8.55]
[1746959620758,0.07555495,2510.4,2510.0,8.55]
[1746959620970,3.9826357,2510.9,2510.1,0.03983118]
[1746959621155,0.07555495,2510.3,2510.2,0.7929]
[1746959621362,3.98200135,2511.3,2510.2,0.7929]
[1746959621534,3.98324903,2510.6,2510.2,0.7929]
[1746959621737,0.3983249,2510.5,2509.9,0.7929]
[1746959621937,3.98353615,2510.4,2510.0,2.642]
[1746959622134,0.07739395,2510.4,2510.0,2.642]
[1746959622557,14.03316644,2510.6,2510.0,2.642]
[1746959622558,14.03320746,2510.6,2510.0,2.642]
[1746959622773,3.98382272,2510.2,2510.0,2.642]
[1746959622971,10.05,2510.6,2509.7,0.8283]
[1746959623269,3.98349813,2510.4,2509.8,2.642]
[1746959623567,1.0816,2510.5,2509.8,2.642]
[1746959623568,3.98359831,2510.3,2509.8,2.642]
[1746959623946,1.0816,2510.5,2509.8,2.642]
[1746959624150,3.98418006,2510.0,2509.7,2.641]
[1746959624351,4.75878416,2510.1,2509.7,2.641]
[1746959624555,0.47587842,2510.0,2509.7,2.641]
[1746959625566,3.98358761,2510.3,2509.7,2.641]
[1746959625877,3.98375748,2510.2,2509.7,2.641]
[1746959626075,14.80828558,2510.4,2509.7,2.641]
[1746959626076,10.8248,2510.4,2509.7,2.641]
[1746959626300,3.98374631,2510.2,2509.5,2.641]
[1746959626593,3.98456665,2509.7,2509.5,2.641]
[1746959626946,3.98446473,2509.8,2509.5,2.641]
[1746959627347,3.98469875,2509.6,2509.5,2.641]
[1746959627764,3.98485754,2509.5,2509.4,14.345]
[1746959627965,1.17324647,2509.8,2509.3,2.638]
[1746959628160,3.98484508,2509.6,2509.3,2.638]
[1746959628465,0.7748,2510.1,2509.4,0.55]
[1746959628670,3.98395424,2510.1,2509.5,0.8283]
[1746959628888,3.98395424,2510.1,2509.6,0.03984227]
[1746959629425,10.05,2510.2,2509.6,0.03984227]
[1746959630059,3.98430952,2509.9,2509.5,0.8283]
[1746959630266,3.98410421,2510.0,2509.5,0.8283]
[1746959630465,3.98424569,2509.9,2509.5,0.8283]
[1746959630988,0.08013945,2509.8,2509.5,0.8283]
[1746959631597,5.86341029,2510.0,2509.5,0.8283]
[1746959631902,4.06439458,2509.9,2509.5,0.8283]
[1746959632194,4.06439458,2509.9,2509.2,2.637]
[1746959632195,0.08013945,2509.9,2509.6,2.637]
[1746959632497,3.98467979,2509.7,2509.6,2.637]
[1746959633100,0.08013945,2509.7,2509.6,2.637]
[1746959633612,4.06467943,2509.7,2509.6,2.637]
[1746959633914,0.08013945,2509.7,2509.6,2.637]
[1746959634272,3.98439245,2509.8,2509.6,2.637]
[1746959634473,0.08013945,2509.7,2509.6,2.637]
[1746959634804,4.78123873,2509.8,2509.6,2.637]
[1746959635002,0.08013945,2509.7,2509.6,2.637]
[1746959635202,7.39573191,2510.1,2509.6,2.637]
[1746959635408,3.98424708,2509.9,2509.6,2.637]
[1746959635700,0.07818728,2509.8,2509.6,2.637]
[1746959636104,4.0625855,2509.8,2509.6,2.637]
[1746959636329,3.98453998,2509.7,2509.6,2.637]
[1746959636869,0.8065,2509.6,2507.8,1.08]
[1746959637185,3.75260551,2509.5,2508.6,3.4475]
[1746959637385,3.98558939,2509.1,2508.6,3.4475]
[1746959637570,13.80260551,2509.5,2508.6,3.4475]
[1746959637571,3.98565453,2509.0,2508.6,3.4475]
[1746959637773,0.07742326,2508.9,2508.6,3.4475]
[1746959639020,0.07742326,2508.8,2508.7,0.03985784]
[1746959639314,16.67189232,2509.5,2508.7,8.03985784]
[1746959639618,16.67189232,2509.5,2508.8,0.83]
[1746959639619,10.05,2509.5,2508.8,0.83]
[1746959640120,10.05,2509.5,2508.9,0.0398518]
[1746959640339,3.98572583,2509.0,2508.8,0.83]
[1746959640490,3.98572583,2509.0,2508.5,2.638]
[1746959640808,3.98585636,2508.9,2508.5,2.638]
[1746959641004,3.98572564,2509.0,2508.5,2.638]
[1746959641209,3.98553849,2509.1,2508.5,2.638]
[1746959641539,0.22202906,2508.9,2508.5,2.638]
[1746959642432,5.86404443,2509.1,2508.6,0.8144]
[1746959642433,0.22202906,2509.0,2508.6,0.8144]
[1746959642935,0.22202906,2509.0,2508.7,0.03986071]
[1746959643121,10.05,2509.2,2508.7,0.03986071]
[1746959643122,10.05,2509.2,2508.7,1.3644]
[1746959643326,3.98552317,2509.1,2508.7,0.8144]
[1746959643495,1.40355232,2509.0,2508.8,2.638]
[1746959643887,3.98552317,2509.1,2508.8,2.638]
[1746959644704,0.22186552,2509.0,2508.8,2.638]
[1746959645132,14.03541784,2509.2,2508.8,2.638]
[1746959645427,14.03541122,2509.2,2508.8,2.638]
[1746959645790,14.03541122,2509.2,2508.3,8.0]
[1746959645791,0.8229,2509.1,2508.3,0.8144]
[1746959645997,14.11097452,2509.0,2508.4,2.638]
[1746959646321,14.0356744,2509.0,2508.4,2.638]
[1746959646554,3.98597646,2508.8,2508.4,2.638]
[1746959647353,3.98589466,2508.9,2508.4,2.638]
[1746959648250,4.20769482,2508.8,2508.5,2.638]
[1746959648645,3.98612827,2508.7,2508.5,2.638]
[1746959648841,4.20769649,2508.8,2508.1,0.8007]
[1746959649164,0.8264,2508.8,2508.2,2.638]
[1746959649369,10.3351201,2508.7,2508.2,2.638]
[1746959649522,3.98630228,2508.6,2508.2,2.638]
[1746959649721,4.20769783,2508.6,2508.2,2.638]
[1746959649922,4.20783202,2508.6,2508.2,2.638]
[1746959650349,3.98647948,2508.5,2508.2,2.638]
[1746959650671,10.3351201,2508.7,2508.2,2.638]
[1746959650829,10.3351201,2508.7,2507.8,14.338]
[1746959650830,3.98701502,2508.2,2507.8,14.338]
[1746959651151,3.98701502,2508.2,2507.9,2.638]
[1746959652561,10.05,2508.3,2507.9,2.638]
[1746959652870,10.05,2508.3,2508.0,0.8007]
[1746959655663,10.05,2508.3,2508.0,8.84056705]
[1746959655869,3.76044389,2509.0,2508.1,0.8007]
[1746959656032,5.10919416,2509.0,2508.1,0.8007]
[1746959656233,7.74619416,2509.0,2508.2,0.03986368]
[1746959656661,3.98581454,2508.9,2508.2,0.03986368]
[1746959656879,7.74614938,2509.0,2508.2,0.03986368]
[1746959657177,3.76044389,2509.0,2508.1,0.8007]
[1746959657335,3.98603992,2508.8,2508.1,0.8007]
[1746959658072,3.98589335,2508.9,2508.1,0.84056574]
[1746959658369,3.98589335,2508.9,2508.1,0.8007]
[1746959658669,3.98599511,2508.8,2508.1,0.8007]
[1746959659083,3.98589068,2508.9,2508.1,0.84056574]
[1746959659492,7.74618318,2509.0,2508.1,0.84056574]
[1746959659683,3.98582658,2508.9,2508.1,0.84056574]
[1746959659859,1.12344389,2509.0,2508.1,0.84056574]
[1746959660363,4.20749356,2508.9,2508.1,0.8007]
[1746959660564,3.98628081,2508.7,2508.1,0.8007]
[1746959661275,3.9863944,2508.6,2508.1,0.8007]
[1746959661488,1.12344389,2509.0,2508.1,0.8007]
[1746959661804,5.10915581,2509.0,2508.1,0.8007]
[1746959661961,5.76555259,2508.9,2508.1,0.84056877]
[1746959662734,3.98605299,2508.8,2508.1,0.8007]
[1746959663007,1.77961558,2508.9,2508.1,0.8007]
[1746959663162,3.98670081,2508.4,2508.0,2.637]
[1746959663373,0.39867008,2508.3,2508.0,2.637]
[1746959663596,3.98687969,2508.3,2508.0,2.637]
[1746959663904,4.81308035,2508.4,2508.0,2.637]
[1746959664112,3.98681646,2508.3,2508.0,2.637]
[1746959665117,3.98696672,2508.2,2508.0,2.637]
[1746959665417,3.9868382,2508.3,2508.0,2.637]
[1746959665719,3.98695873,2508.2,2508.0,2.637]
[1746959665914,15.18052206,2508.3,2508.0,2.637]
[1746959666618,0.22209249,2508.2,2508.0,2.637]
[1746959667608,15.18052206,2508.3,2508.0,2.637]
[1746959667898,11.19367391,2508.3,2508.0,2.637]
[1746959668107,3.98696925,2508.2,2508.0,2.637]
[1746959668669,0.22204221,2508.1,2508.0,2.637]
[1746959669903,3.98731876,2508.0,2507.8,14.338]
[1746959670111,5.74947549,2508.1,2507.8,14.338]
[1746959670316,5.74947549,2508.1,2507.7,2.637]
[1746959670491,4.20928929,2508.0,2507.7,2.637]
[1746959670674,3.98742377,2507.9,2507.7,2.637]
[1746959671008,3.98775037,2507.7,2507.3,2.637]
[1746959671207,4.76561597,2507.6,2507.3,2.637]
[1746959671406,3.98803899,2507.5,2507.3,2.637]
[1746959671902,3.98819494,2507.4,2507.1,2.637]
[1746959672110,3.98848635,2507.3,2507.0,2.637]
[1746959672577,0.22167852,2507.2,2507.0,2.637]
[1746959673023,4.21024911,2507.2,2507.0,2.637]
[1746959673221,0.22167852,2507.2,2507.0,2.637]
[1746959673533,3.98824492,2507.4,2507.0,2.637]
[1746959673534,3.988354,2507.3,2507.0,2.637]
[1746959674377,14.03811398,2507.5,2507.0,2.637]
[1746959674591,0.22166078,2507.4,2507.0,2.637]
[1746959675073,11.98822965,2507.4,2507.0,2.637]
[1746959675590,3.98843178,2507.3,2507.0,2.637]
[1746959675994,8.0,2507.4,2507.0,2.637]
[1746959676191,11.98821552,2507.4,2507.0,2.637]
[1746959676538,11.98831649,2507.4,2507.0,2.637]
[1746959676700,8.0,2507.4,2507.0,2.637]
[1746959678803,10.05,2507.5,2507.1,0.8142]
[1746959679899,8.0,2507.7,2507.1,0.8142]
[1746959680104,0.30363137,2507.8,2507.1,0.8142]
[1746959680300,18.05,2507.9,2507.1,0.8142]
[1746959680501,22.03742206,2507.9,2507.1,0.8142]
[1746959681106,18.05,2507.9,2507.1,0.8142]
[1746959681644,18.05,2507.9,2507.2,0.03988022]
[1746959681849,22.03740233,2507.9,2507.1,0.8142]
[1746959682041,22.03740233,2507.9,2507.2,0.03988023]
[1746959682641,18.05,2507.9,2507.2,0.03988023]
[1746959683247,8.0,2507.8,2507.3,0.8079]
[1746959683450,3.98795387,2507.6,2507.0,2.637]
[1746959683745,11.98829868,2507.4,2507.1,2.638]
[1746959683949,22.03829868,2507.4,2507.1,2.638]
[1746959684106,23.83227783,2507.4,2507.1,2.638]
[1746959684307,23.83227783,2507.4,2506.9,0.8079]
[1746959684308,8.0,2507.3,2506.9,0.8079]
[1746959684509,8.0,2507.3,2506.9,3.4459]
[1746959684709,8.0,2507.3,2506.9,2.638]
[1746959684906,11.98845541,2507.3,2506.9,2.638]
[1746959685110,15.11032112,2507.3,2506.9,2.638]
[1746959685347,11.12186571,2507.3,2506.9,2.638]
[1746959685746,10.05,2507.4,2507.0,0.84779043]
[1746959685951,10.05,2507.4,2507.0,0.8079]
[1746959687553,14.03820454,2507.4,2507.0,0.8079]
[1746959687754,10.05,2507.4,2507.0,0.8079]
[1746959689754,10.05,2507.4,2507.2,0.7869]
[1746959689920,8.0,2507.6,2507.2,0.7869]
[1746959693058,8.0,2507.6,2506.8,15.1057]
[1746959693059,0.7952,2507.5,2506.8,15.1057]
[1746959693249,0.7952,2507.5,2507.0,2.636]
[1746959693250,3.9885979,2507.2,2507.0,2.636]
[1746959694062,3.98843954,2507.3,2507.0,2.636]
[1746959694430,3.98851826,2507.2,2507.0,2.636]
[1746959695157,4.78329886,2507.5,2507.0,2.636]
[1746959695356,4.78283556,2507.8,2507.1,0.7607]
[1746959695562,3.98772899,2507.7,2507.1,0.7607]
[1746959696062,0.22211166,2507.6,2507.1,0.7607]
[1746959696751,3.98772899,2507.7,2507.1,0.7607]
[1746959696960,4.78281273,2507.8,2507.1,0.7607]
[1746959697161,3.98761273,2507.8,2507.1,0.7607]
[1746959697529,0.22222908,2507.7,2507.1,0.7607]
[1746959698162,0.22222908,2507.7,2507.3,0.7861]
[1746959698560,10.05,2507.9,2507.3,0.7861]
[1746959699466,0.22230922,2507.8,2507.3,0.7861]
[1746959700133,0.22230922,2507.7,2507.3,0.7861]
[1746959701162,4.21005073,2507.7,2507.3,0.7861]
[1746959701472,3.98763532,2507.8,2507.3,0.7861]
[1746959702367,3.98787769,2507.6,2507.0,0.8005]
[1746959702538,3.98796073,2507.6,2507.4,2.636]
[1746959702745,4.86739246,2507.6,2507.4,2.636]
[1746959702946,3.9883344,2507.4,2507.3,2.636]
[1746959703146,4.21065095,2507.4,2507.3,2.636]
[1746959703339,4.21065095,2507.4,2506.8,14.345]
[1746959703340,3.98843002,2507.3,2506.8,14.345]
[1746959703540,3.98880672,2507.1,2506.8,15.1455]
[1746959703764,3.98883127,2507.0,2506.9,2.636]
[1746959704128,0.22231655,2507.0,2506.9,2.636]
[1746959705235,0.22231655,2507.1,2506.9,2.636]
[1746959705435,4.21101837,2507.1,2506.9,2.636]
[1746959705946,0.22231655,2507.0,2506.9,2.636]
[1746959706591,0.22231655,2507.0,2506.8,14.345]
[1746959706933,0.22231655,2506.9,2506.8,14.345]
[1746959707131,0.22231655,2506.9,2506.7,2.636]
[1746959707388,0.22231655,2506.9,2506.4,0.8005]
[1746959707590,0.22231655,2506.9,2506.5,2.636]
[1746959707733,4.211421,2506.9,2506.5,2.636]
[1746959708180,3.98923004,2506.8,2506.5,2.636]
[1746959708360,3.98932299,2506.7,2506.5,2.636]
[1746959708693,3.98966006,2506.5,2506.4,2.636]
[1746959709256,3.99103535,2505.7,2505.2,2.636]
[1746959709583,6.62498085,2505.7,2505.1,0.8164]
[1746959709746,16.67503505,2505.7,2505.1,2.636]
[1746959709950,0.7605,2505.5,2505.1,2.636]
[1746959710151,3.99160692,2505.3,2505.1,2.636]
[1746959710350,3.99169726,2505.2,2505.1,2.636]
[1746959710660,14.04169726,2505.2,2505.1,2.636]
[1746959710876,15.84502251,2505.2,2505.1,2.636]
[1746959711559,11.85332525,2505.2,2505.1,2.636]
[1746959711947,15.84502251,2505.2,2505.1,2.636]
[1746959712172,14.04169726,2505.2,2505.1,2.636]
[1746959712488,10.05,2505.2,2505.1,2.636]
[1746959712849,14.04169726,2505.2,2505.1,2.636]
[1746959713051,10.8435,2505.2,2503.9,3.68204532]
[1746959713249,10.8435,2505.2,2503.7,0.7955]
[1746959713250,3.99258531,2504.7,2504.0,2.637]
[1746959713470,21.76935,2505.1,2504.0,2.637]
[1746959713681,3.99221733,2504.9,2504.1,0.7955]
[1746959713985,21.76935,2505.1,2504.1,0.7955]
[1746959714488,3.99228559,2504.9,2504.1,0.7955]
[1746959714782,6.96763837,2504.9,2504.1,0.7955]
[1746959715149,2.97535278,2504.9,2504.1,0.7955]
[1746959715784,3.99249411,2504.7,2504.1,0.7955]
[1746959716184,10.05,2504.8,2504.1,0.7955]
[1746959716498,3.99319593,2504.3,2503.6,3.4325]
[1746959716699,7.42184798,2504.2,2503.6,3.4325]
[1746959717002,13.4785,2504.2,2503.6,2.637]
[1746959717509,3.99391859,2503.9,2503.6,2.637]
[1746959717806,3.99415522,2503.7,2503.2,14.355]
[1746959717962,2.635,2503.8,2503.2,14.355]
[1746959718481,3.99449297,2503.5,2503.1,2.638]
[1746959718867,3.99432139,2503.6,2503.1,2.638]
[1746959719086,14.83768242,2503.7,2503.1,2.638]
[1746959719372,3.99473072,2503.3,2503.1,2.638]
[1746959719558,2.635,2503.2,2502.6,2.635]
[1746959719765,12.685,2503.2,2502.6,2.635]
[1746959720089,12.685,2503.2,2502.6,2.67495589]
[1746959721008,10.05,2503.2,2502.6,2.67495589]
[1746959722393,10.05,2503.2,2502.6,2.67494874]
[1746959722910,10.05,2503.5,2502.6,2.67494874]
[1746959723108,10.05,2503.5,2502.8,0.8205]
[1746959723269,0.8089,2504.0,2503.1,0.55]
[1746959723469,3.99419668,2503.7,2503.2,2.637]
[1746959723693,3.99419668,2503.7,2503.3,2.637]
[1746959723896,1.15339,2504.0,2503.3,2.637]
[1746959723897,14.04428797,2503.6,2503.3,2.637]
[1746959724220,4.80361987,2503.4,2502.6,8.0]
[1746959724506,3.99500626,2503.2,2502.5,3.4575]
[1746959725309,14.0448075,2503.3,2502.5,3.4575]
[1746959725612,15.92962993,2503.3,2502.5,3.4575]
[1746959726323,11.93482243,2503.3,2502.5,3.4575]
[1746959726645,8.0,2503.2,2502.6,0.03995631]
[1746959727266,12.686,2503.3,2502.5,3.4575]
[1746959727466,12.687,2503.3,2502.6,0.0399507]
[1746959727710,12.687,2503.3,2502.5,3.4575]
[1746959729296,8.0,2502.8,2501.7,0.8205]
[1746959729512,2.637,2502.7,2501.7,0.8205]
[1746959729824,2.637,2502.7,2501.8,0.55]
[1746959729999,2.637,2502.7,2501.7,0.8205]
[1746959730198,4.7057,2502.7,2501.8,0.55]
[1746959730526,4.7057,2502.7,2501.7,0.8205]
[1746959730689,4.7057,2502.7,2501.8,0.55]
[1746959731215,4.7057,2502.7,2501.7,0.8205]
[1746959731216,8.70144233,2502.7,2501.7,8.8205]
[1746959731380,1.87514423,2502.6,2501.7,8.0]
[1746959731581,0.42804903,2502.6,2501.8,0.86046543]
[1746959731786,0.42804903,2502.6,2501.8,0.8205]
[1746959733198,0.42804903,2502.6,2501.9,0.03996161]
[1746959733495,0.42804903,2502.6,2501.7,8.0]
[1746959733496,0.42804903,2502.6,2502.0,0.7541]
[1746959734231,10.05,2502.8,2502.2,0.7541]
[1746959734529,0.374889,2502.7,2501.9,0.7541]
[1746959734712,0.374889,2502.7,2502.2,2.638]
[1746959735227,4.37070611,2502.7,2502.2,2.638]
[1746959735934,3.99589351,2502.6,2502.2,2.638]
[1746959736130,0.43707825,2502.5,2502.2,2.638]
[1746959736511,0.37511673,2502.4,2502.2,2.638]
[1746959737338,0.37211673,2502.4,2502.2,2.638]
[1746959737545,0.7876,2502.6,2502.2,2.638]
[1746959737742,0.37486673,2502.3,2502.2,2.638]
[1746959737958,3.99608225,2502.5,2502.2,2.638]
[1746959738145,0.37486673,2502.3,2502.2,2.638]
[1746959738443,3.99632338,2502.3,2502.2,2.638]
[1746959738746,4.8258664,2502.1,2501.5,2.638]
[1746959738944,14.61816954,2502.1,2501.5,2.638]
[1746959739247,10.16642968,2502.0,2501.1,0.7618]
[1746959739449,3.99725224,2501.8,2501.1,0.7618]
[1746959739623,13.7895964,2501.7,2501.1,0.7618]
[1746959739828,14.16363752,2501.7,2501.1,0.7618]
[1746959740228,3.99754124,2501.6,2501.1,0.7618]
[1746959740423,9.79230314,2501.6,2501.1,0.7618]
[1746959740949,0.37404112,2501.5,2501.1,0.7618]
[1746959741653,0.37404112,2501.5,2501.2,0.58997454]
[1746959741860,0.37404112,2501.5,2501.3,0.7509]
[1746959743922,0.37404112,2501.5,2501.3,0.79087323]
[1746959744156,0.37404112,2501.5,2501.3,0.7509]
[1746959745476,0.37404112,2501.5,2501.4,0.03997441]
[1746959745845,9.79230314,2501.6,2501.3,0.7509]
[1746959746041,9.79230314,2501.6,2501.4,0.03997278]
[1746959746242,9.79230314,2501.6,2501.3,0.7509]
[1746959747078,0.8182,2502.0,2501.3,0.7509]
[1746959747289,0.37136452,2501.5,2501.3,0.7509]
[1746959747585,0.37136452,2501.4,2501.3,0.7509]
[1746959747786,9.79230314,2502.1,2501.3,0.7509]
[1746959747989,0.37136452,2501.4,2501.3,1.3009]
[1746959748286,9.79230314,2502.1,2501.3,1.3009]
[1746959748581,0.37136452,2502.0,2501.4,0.8256]
[1746959750067,0.37136452,2502.0,2501.2,0.03997076]
[1746959750068,0.83,2501.9,2501.2,0.86557076]
[1746959750273,0.83,2501.9,2501.4,8.0]
[1746959750475,0.3714451,2501.8,2501.4,8.0]
[1746959750679,0.3714451,2501.8,2501.4,8.03997299]
[1746959751048,9.79230314,2502.1,2501.4,8.03997299]
[1746959751286,0.3714451,2501.7,2501.4,8.03997299]
[1746959751450,9.79230314,2502.1,2501.4,8.03997299]
[1746959751650,0.3714451,2501.6,2501.5,1.3756]
[1746959751876,13.78799599,2502.7,2501.7,0.8256]
[1746959752185,6.16429604,2502.6,2501.7,0.8256]
[1746959752394,0.83,2502.5,2501.7,0.8256]
[1746959752806,10.08573514,2502.7,2501.4,8.0]
[1746959752807,0.34074136,2502.4,2501.9,0.8256]
[1746959752974,9.79230314,2502.7,2502.0,3.19]
[1746959753175,0.34119897,2502.3,2502.0,3.19]
[1746959753505,9.79230314,2502.7,2502.0,3.19]
[1746959753711,0.34125616,2502.2,2502.0,3.19]
[1746959753868,0.22112581,2502.6,2502.0,3.19]
[1746959754208,0.22112581,2502.6,2502.1,0.8256]
[1746959754374,0.34125616,2502.5,2502.1,0.8256]
[1746959754780,9.79230314,2502.7,2502.1,0.8256]
[1746959754999,0.34125616,2502.4,2502.1,0.8256]
[1746959755212,9.79230314,2502.7,2502.1,0.8256]
[1746959755213,9.79230314,2503.1,2502.2,0.55]
[1746959755391,2.651,2503.2,2502.4,0.55]
[1746959755587,2.651,2503.2,2502.5,0.8256]
[1746959755906,0.22115948,2503.1,2502.6,2.64]
[1746959756892,9.79230314,2503.5,2502.6,2.64]
[1746959757100,12.44630314,2503.5,2502.6,2.64]
[1746959757313,9.79230314,2503.5,2502.7,8.039952]
[1746959757588,9.79230314,2503.5,2502.8,0.8256]
[1746959757924,9.79230314,2503.5,2502.9,0.03994864]
[1746959759705,9.79230314,2504.0,2503.0,1.3756]
[1746959759884,0.22100574,2503.9,2503.0,1.3756]
[1746959760083,4.21478123,2503.9,2503.0,0.8256]
[1746959760305,0.22100574,2503.9,2503.0,0.8256]
[1746959760542,0.83,2503.8,2503.1,2.64]
[1746959760683,1.48723663,2503.9,2503.1,2.64]
[1746959760880,0.22100574,2503.9,2503.2,8.8256]
[1746959761128,9.79230314,2504.0,2503.4,0.8256]
[1746959761319,9.79230314,2504.0,2503.6,0.8256]
[1746959761507,2.654,2504.3,2503.7,2.64]
[1746959761825,2.654,2504.3,2503.6,0.8256]
[1746959761826,3.40169186,2504.3,2503.6,0.8256]
[1746959762123,0.34837404,2504.2,2503.8,2.64]
[1746959762291,4.34168543,2504.2,2503.8,2.64]
[1746959762493,2.654,2504.3,2503.8,2.64]
[1746959762833,6.64717847,2504.3,2503.8,2.64]
[1746959763016,0.34837404,2504.2,2503.8,2.64]
[1746959763328,6.64717216,2504.3,2503.8,2.64]
[1746959763492,0.34837404,2504.1,2503.8,2.64]
[1746959763689,3.8010022,2504.3,2503.8,2.64]
[1746959763886,0.34837404,2504.0,2503.8,2.64]
[1746959764103,0.34837404,2504.0,2502.9,0.55]
[1746959764104,9.79230314,2503.9,2502.5,0.7623]
[1746959764336,3.9944848,2503.5,2502.5,0.7623]
[1746959764503,6.6624848,2503.5,2502.5,8.7623]
[1746959764702,0.3498594,2503.4,2502.5,8.7623]
[1746959764905,4.34447081,2503.4,2502.5,8.7623]
[1746959765214,0.3498594,2503.4,2502.5,0.7623]
[1746959765412,0.3498594,2503.4,2502.5,8.7623]
[1746959766312,3.99477309,2503.3,2502.5,8.7623]
[1746959766926,0.3498594,2503.2,2502.5,8.7623]
[1746959767124,4.34488252,2503.2,2502.5,8.7623]
[1746959767315,3.99486418,2503.3,2502.5,0.7623]
[1746959767499,0.3498594,2503.1,2502.5,0.7623]
[1746959767704,3.99502662,2503.2,2502.5,0.7623]
[1746959767926,0.3498594,2503.0,2502.5,0.7623]
[1746959768127,3.99502662,2503.2,2502.5,0.7623]
[1746959768315,0.3498594,2502.9,2502.5,0.7623]
[1746959768526,3.99498539,2503.2,2502.5,2.639]
[1746959768842,3.99522414,2503.0,2502.5,2.639]
[1746959769049,0.3498594,2503.1,2502.5,2.639]
[1746959769256,1.09163625,2503.1,2502.5,2.639]
[1746959769417,3.99547777,2502.9,2502.5,2.639]
[1746959769606,2.66,2502.9,2502.5,2.639]
[1746959770045,0.7742,2502.7,2502.5,2.639]
[1746959770248,3.99594272,2502.6,2502.1,0.7502]
[1746959770619,4.34587264,2502.5,2502.0,2.639]
[1746959771006,3.99616467,2502.4,2502.0,2.639]
[1746959771336,3.99608088,2502.5,2502.0,2.639]
[1746959771519,0.3498594,2502.3,2502.0,2.639]
[1746959771721,3.99608088,2502.5,2502.0,2.639]
[1746959771934,0.3498594,2502.2,2502.0,2.639]
[1746959772131,10.56650314,2502.7,2502.0,2.639]
[1746959772324,0.3498594,2502.1,2502.0,2.639]
[1746959772518,10.56650314,2502.7,2502.0,2.639]
[1746959772743,0.3498594,2502.1,2502.0,2.639]
[1746959772945,3.99619009,2502.4,2502.0,2.639]
[1746959772946,9.79230314,2502.3,2502.0,2.639]
[1746959773131,0.3498594,2502.1,2502.0,2.639]
[1746959773817,13.78863026,2502.3,2502.0,2.639]
[1746959774020,0.3498594,2502.2,2502.0,2.639]
[1746959775041,0.34722974,2502.1,2502.0,2.639]
[1746959775234,18.49753936,2502.3,2502.0,2.639]
[1746959775435,4.34371911,2502.2,2502.0,2.639]
[1746959775660,0.34722974,2502.2,2502.0,2.639]
[1746959775858,18.49758487,2502.3,2502.0,2.639]
[1746959776026,6.96855006,2502.2,2502.0,2.639]
[1746959776359,3.00722974,2502.2,2502.0,2.639]
[1746959777159,0.34722974,2502.2,2502.0,2.639]
[1746959777523,9.79230314,2502.3,2502.0,2.639]
[1746959777723,0.34722974,2502.1,2502.0,2.639]
[1746959777955,9.79230314,2502.3,2502.0,2.639]
[1746959778161,0.34722974,2502.1,2502.0,2.639]
[1746959778361,9.79230314,2502.3,2502.0,2.639]
[1746959778557,0.34722974,2502.1,2502.0,3.4514]
[1746959778723,9.79230314,2502.3,2502.0,3.4514]
[1746959778925,0.34722974,2502.1,2502.0,3.4514]
[1746959779261,0.34722974,2502.1,2502.0,2.639]
[1746959779463,4.77157571,2502.2,2502.0,2.639]
[1746959779649,0.34722974,2502.1,2502.0,2.639]
[1746959782164,4.3439641,2502.1,2501.6,14.376]
[1746959782525,4.34392966,2502.1,2501.6,14.376]
[1746959782760,3.99692788,2502.0,2501.6,14.376]
[1746959783459,0.34722974,2501.9,2501.6,14.376]
[1746959783663,13.22130314,2501.8,2500.9,3.4714]
[1746959783862,0.775,2501.5,2500.1,2.659]
[1746959784068,3.99864462,2500.9,2500.0,0.8124]
[1746959784223,4.77292108,2501.3,2500.1,0.55]
[1746959784224,2.668,2500.8,2500.1,0.55]
[1746959784429,0.34722974,2500.8,2500.2,0.03999091]
[1746959784751,2.669,2501.3,2500.3,0.8124]
[1746959785048,2.669,2501.3,2500.5,0.8124]
[1746959785227,0.34579974,2501.2,2500.6,2.659]
[1746959786130,3.99851726,2501.0,2500.6,2.659]
[1746959786330,8.0,2500.9,2500.6,2.659]
[1746959786752,0.34579974,2500.8,2500.6,2.659]
[1746959787162,8.0,2501.2,2500.6,2.659]
[1746959787362,0.34579974,2500.7,2500.6,2.659]
[1746959787851,10.673,2501.2,2500.6,2.659]
[1746959788056,0.34579974,2500.7,2500.6,2.659]
[1746959788282,8.0,2501.3,2500.6,2.659]
[1746959788480,0.34579974,2500.7,2500.6,2.659]
[1746959788782,8.0,2501.3,2500.6,2.659]
[1746959788946,0.34579974,2500.7,2500.6,2.659]
[1746959789143,8.0,2501.3,2500.6,2.659]
[1746959789347,0.34579974,2500.7,2500.6,2.659]
[1746959789549,9.79230314,2501.4,2500.9,0.55]
[1746959789759,8.0,2502.0,2501.0,0.8144]
[1746959789989,11.99680826,2502.0,2501.0,0.8144]
[1746959790281,10.92396036,2502.0,2501.0,0.8144]
[1746959790482,4.77900595,2502.5,2501.3,0.55]
[1746959790778,3.99620465,2502.4,2501.5,0.55]
[1746959790985,11.99638061,2502.3,2501.6,2.659]
[1746959791275,17.79230314,2502.3,2501.6,2.659]
[1746959791859,3.99654095,2502.2,2501.6,2.659]
[1746959792043,17.79230314,2502.3,2501.6,2.659]
[1746959792747,9.79230314,2502.3,2501.8,0.8205]
[1746959795376,11.59489192,2502.3,2501.8,0.8205]
[1746959795881,9.79230314,2502.3,2501.8,0.8205]
[1746959796181,0.340312,2502.2,2501.9,0.03996571]
[1746959796482,9.79230314,2502.3,2501.9,0.03996571]
[1746959796646,0.34234288,2502.2,2501.8,0.8205]
[1746959796852,9.79230314,2502.3,2501.8,0.8205]